fUST/lending_fUST_20251226
["ID","MTS","AMOUNT","RATE_DAILY","PERIOD"]
[399808086,1766689838736,-161.55267903,9.294e-05,2]
[399808087,1766689838749,-154.33,9.3e-05,2]
[399808088,1766689838761,-155.98,9.565e-05,2]
[399808089,1766689838773,-175.48,9.906e-05,2]
[399808090,1766689838785,-150.51893334,0.00010248,2]
[399808091,1766689838797,-154.33,0.000114,2]
[399808092,1766689838809,-1041.66666667,0.00012364,2]
[399808093,1766689838821,-193.0,0.00012795,3]
[399808094,1766689838833,-154.33,0.000136,2]
[399808095,1766689838847,-200.0,0.00013699,2]
[399808096,1766689838857,-500.0,0.00013699,2]
[399808097,1766689838868,-500.0,0.00013699,2]
[399808098,1766689838881,-200.0,0.0001389,3]
[399808099,1766689838893,-1000.0,0.00014247,2]
[399808100,1766689838905,-1000.0,0.00014247,2]
[399808101,1766689838917,-1500.0,0.00014795,2]
[399808102,1766689838929,-1500.0,0.00014795,2]
[399808103,1766689838942,-400.0,0.00015068,2]
[399808104,1766689838954,-218.592,0.00015078,2]
[399808105,1766689838967,-238.135,0.00015078,2]
[399808106,1766689838979,-266.74,0.00015078,2]
[399808107,1766689838993,-416.0,0.00015078,2]
[399808108,1766689839006,-2000.0,0.00015342,2]
[399808109,1766689839018,-2000.0,0.00015342,2]
[399808110,1766689839032,-203.0,0.00015534,3]
[399808111,1766689839043,-154.33,0.000157,2]
[399808112,1766689839055,-2500.0,0.0001589,2]
[399808113,1766689839068,-2500.0,0.0001589,2]
[399808114,1766689839079,-540.14889818,0.00016437,2]
[399808115,1766689839090,-500.0,0.00016437,2]
[399808116,1766689839102,-403.44156637,0.00016437,2]
[399808117,1766689839114,-500.0,0.00016437,2]
[399808118,1766689839126,-500.0,0.00016437,2]
[399808119,1766689839137,-166.9,0.00016438,2]
[399808120,1766689839148,-500.0,0.00016438,2]
[399808121,1766689839160,-500.0,0.00016438,2]
[399808122,1766689839171,-500.0,0.00016438,2]
[399808123,1766689839184,-500.0,0.00016438,2]
[399808124,1766689839196,-500.0,0.00016438,2]
[399808125,1766689839208,-500.0,0.00016438,2]
[399808126,1766689839220,-500.0,0.00016438,2]
[399808127,1766689839232,-539.32683197,0.00016438,2]
[399808128,1766689839244,-600.0,0.00016438,2]
[399808129,1766689839256,-3000.0,0.00016438,2]
[399808130,1766689839268,-3000.0,0.00016438,2]
[399808131,1766689839281,-160.0,0.00016489,2]
[399808132,1766689839294,-166.9,0.00016712,2]
[399808133,1766689839306,-43.17227233,0.00016986,2]
[399808134,1766689839321,-123.72772767,0.00016986,2]
[399808135,1766689839333,-629.00852939,0.00016986,2]
[399808136,1766689839347,-2870.99147061,0.00016986,2]
[399808137,1766689839359,-3500.0,0.00016986,2]
[399808138,1766689839370,-260.0,0.00017037,2]
[399808139,1766689839383,-205.0,0.00017178,3]
[399808140,1766689839396,-166.9,0.0001726,2]
[399808141,1766689839407,-166.9,0.00017534,2]
[399808142,1766689839417,-1869.20130408,0.00017534,2]
[399808143,1766689839430,-400.59033389,0.00017534,2]
[399808156,1766689840353,-1283.563238,9.291e-05,2]
[399808162,1766689840407,-2298.15410575,9.291e-05,2]
[399808164,1766689840421,-299.2891204,9.291e-05,2]
[399808167,1766689840434,-3079.28350416,9.291e-05,2]
[399808169,1766689840446,-263.98648147,9.291e-05,2]
[399808172,1766689840460,-749.58,9.291e-05,2]
[399808178,1766689840515,-840.4981871,9.291e-05,2]
[399808465,1766689843492,-478.95360475,9.291e-05,2]
[399808467,1766689843505,-779.33406792,9.291e-05,2]
[399808724,1766689846499,-3825.72403329,9.291e-05,2]
[399809379,1766690031767,241.04221616,0.0002148,120]
[399809380,1766690070285,5000.0,6e-05,10]
[399809382,1766690093379,5000.0,6e-05,10]
[399809384,1766690122587,454.0,0.00020814,120]
[399809385,1766690124066,454.0,0.00021855,120]
[399809386,1766690125302,454.0,0.00022948,120]
[399809387,1766690126769,454.0,0.00024095,120]
[399809388,1766690128051,454.0,0.000253,120]
[399809389,1766690129517,454.0,0.00026565,120]
[399809390,1766690130767,454.0,0.00027893,120]
[399809391,1766690132034,454.0,0.00029288,120]
[399809392,1766690133286,454.0,0.00030752,120]
[399809393,1766690134770,454.0,0.0003229,120]
[399809394,1766690143292,500.0,0.00032876,120]
[399809395,1766690143515,500.0,0.00032876,120]
[399809396,1766690143745,500.0,0.00032876,120]
[399809397,1766690143985,500.0,0.00032876,120]
[399809398,1766690144276,500.0,0.00032876,120]
[399809399,1766690144353,562.0,0.00020487,120]
[399809400,1766690144449,500.0,0.00032876,120]
[399809401,1766690144686,500.0,0.00032876,120]
[399809402,1766690144915,500.0,0.00032876,120]
[399809403,1766690145147,500.0,0.00032876,120]
[399809404,1766690145381,500.0,0.00032876,120]
[399809405,1766690145587,562.0,0.00021511,120]
[399809406,1766690145770,500.0,0.00032876,120]
[399809407,1766690146004,500.0,0.00032876,120]
[399809408,1766690146281,500.0,0.00032876,120]
[399809409,1766690146505,500.0,0.00032876,120]
[399809410,1766690146734,501.00000015,0.00032876,120]
[399809411,1766690146863,562.0,0.00022587,120]
[399809412,1766690148132,562.0,0.00023716,120]
[399809413,1766690149399,562.0,0.00024902,120]
[399809414,1766690150656,562.0,0.00026147,120]
[399809415,1766690151918,562.0,0.00027454,120]
[399809416,1766690153287,562.0,0.00028827,120]
[399809417,1766690154737,562.0,0.00030269,120]
[399809418,1766690155928,562.0,0.00031782,120]
[399809419,1766690166825,1000.0,0.00032,120]
[399809421,1766690333124,217.786446,0.00030137,120]
[399809426,1766690372260,624.93,0.00032876,120]
[399809427,1766690372513,624.93,0.00032876,120]
[399809428,1766690372829,624.93,0.00032876,120]
[399809429,1766690373283,624.93,0.00032876,120]
[399809430,1766690373526,624.93,0.00032876,120]
[399809431,1766690373833,624.93,0.00032876,120]
[399809432,1766690373971,624.93,0.00032876,120]
[399809433,1766690374217,624.93,0.00032876,120]
[399809434,1766690374579,624.93,0.00032876,120]
[399809435,1766690374806,624.93,0.00032876,120]
[399809436,1766690375064,624.93,0.00032876,120]
[399809437,1766690375422,624.93,0.00032876,120]
[399809438,1766690375645,624.93,0.00032876,120]
[399809439,1766690375917,624.93,0.00032876,120]
[399809440,1766690376163,624.93,0.00032876,120]
[399809441,1766690376445,624.93,0.00032876,120]
[399809442,1766690376687,624.93,0.00032876,120]
[399809443,1766690376963,624.93,0.00032876,120]
[399809444,1766690377196,624.93,0.00032876,120]
[399809445,1766690377419,624.93,0.00032876,120]
[399809446,1766690377642,624.93,0.00032876,120]
[399809447,1766690377876,624.93,0.00032876,120]
[399809448,1766690378129,624.93,0.00032876,120]
[399809449,1766690378372,625.11030015,0.00032876,120]
[399809450,1766690391540,241.04221616,0.00021455,120]
[399809451,1766690404493,489.0,0.00031238,120]
[399809452,1766690405745,489.0,0.000328,120]
[399809453,1766690413253,500.0,0.00032876,120]
[399809454,1766690413480,500.0,0.00032876,120]
[399809455,1766690413734,500.0,0.00032876,120]
[399809456,1766690413985,500.0,0.00032876,120]
[399809457,1766690414227,500.0,0.00032876,120]
[399809458,1766690414450,500.0,0.00032876,120]
[399809459,1766690414669,500.0,0.00032876,120]
[399809460,1766690418362,493.97750616,0.00032876,120]
[399809461,1766690424599,166.99527558,0.00032876,120]
[399809462,1766690426812,462.49130138,0.00032876,120]
[399809463,1766690428182,197.0,0.00031539,120]
[399809464,1766690428632,391.15426,0.000293,120]
[399809465,1766690430965,195.79797444,0.00032876,120]
[399809466,1766690432810,186.92604458,0.00032876,120]
[399809467,1766690433405,365.87336706,0.00032876,120]
[399809468,1766690435270,200.0,0.000293,120]
[399809469,1766690435582,200.0,0.00031,120]
[399809470,1766690435686,249.14358392,0.00032876,120]
[399809471,1766690435879,200.0,0.000327,120]
[399809472,1766690439249,341.14929813,0.00032876,120]
[399809473,1766690440909,346.88994064,0.00032876,120]
[399809474,1766690444348,469.05578898,0.00032876,120]
[399809475,1766690444581,325.29750524,0.00032876,120]
[399809476,1766690445181,199.43786917,0.00032876,120]
[399809477,1766690446482,339.72946854,0.00032876,120]
[399809478,1766690446888,449.46364438,0.00032876,120]
[399809479,1766690447739,460.07916281,0.00032876,120]
[399809480,1766690448559,323.47571576,0.00032876,120]
[399809481,1766690449597,387.79337454,0.00032876,120]
[399809482,1766690451221,412.39048231,0.00032876,120]
[399809483,1766690451814,489.8084571,0.00032876,120]
[399809484,1766690453549,418.00143535,0.00032876,120]
[399809485,1766690453630,161.02425194,0.00032876,120]
[399809486,1766690457141,217.12051209,0.00032876,120]
[399809487,1766690457219,341.54200037,0.00032876,120]
[399809488,1766690461931,415.97952069,0.00032876,120]
[399809489,1766690464852,180.32771244,0.00032876,120]
[399809490,1766690467930,170.80660467,0.00032876,120]
[399809491,1766690469093,467.43529118,0.00032876,120]
[399809492,1766690470040,500.0,0.00032876,120]
[399809493,1766690470281,389.41936356,0.00032876,120]
[399809494,1766690470700,257.39294929,0.00032876,120]
[399809495,1766690470936,219.24839932,0.00032876,120]
[399809496,1766690473897,233.42886193,0.00032876,120]
[399809497,1766690475579,417.64174909,0.00032876,120]
[399809498,1766690475656,486.17750734,0.00032876,120]
[399809499,1766690479121,322.17711466,0.00032876,120]
[399809501,1766690483018,398.77384643,0.00032876,120]
[399809502,1766690483678,515.6244822,0.00030137,120]
[399809503,1766690487842,228.78765601,0.00032876,120]
[399809504,1766690488760,241.20451254,0.00032876,120]
[399809505,1766690489759,291.20838897,0.00032876,120]
[399809506,1766690490592,448.66085267,0.00032876,120]
[399809507,1766690493146,157.7693026,0.00032876,120]
[399809508,1766690494134,490.59431311,0.00032876,120]
[399809509,1766690496036,300.0,0.0003287,120]
[399809510,1766690496781,338.28648898,0.00032876,120]
[399809511,1766690498346,431.10866472,0.00032876,120]
[399809520,1766690511661,171.03015447,0.00032876,120]
[399809522,1766690512583,173.42642098,0.00021468,120]
[399809523,1766690512646,156.35104141,0.00021468,120]
[399809526,1766690514094,299.84296812,0.00032876,120]
[399809528,1766690515018,482.58896704,0.00032876,120]
[399809530,1766690516915,202.43770049,0.00032876,120]
[399809531,1766690517064,322.6970312,0.00032876,120]
[399809532,1766690518932,373.73500391,0.00032876,120]
[399809533,1766690519751,261.50968454,0.00032876,120]
[399809534,1766690523469,419.05145442,0.00032876,120]
[399809535,1766690525076,325.93070627,0.00032876,120]
[399809536,1766690525239,295.16837441,0.00032876,120]
[399809537,1766690525491,381.96867562,0.00032876,120]
[399809538,1766690527371,496.09984693,0.00032876,120]
[399809539,1766690529552,411.17342517,0.00032876,120]
[399809540,1766690531280,213.41081892,0.00032876,120]
[399809541,1766690532013,309.37809215,0.00032876,120]
[399809542,1766690534254,475.79025027,0.00032876,120]
[399809543,1766690534429,212.18890834,0.00032876,120]
[399809544,1766690537663,238.331526,0.00032876,120]
[399809545,1766690543371,193.08737129,0.00032876,120]
[399809546,1766690543711,261.40137479,0.00032876,120]
[399809547,1766690544496,221.81544773,0.00032876,120]
[399809549,1766690546191,439.15171432,0.00032876,120]
[399809550,1766690547296,235.71176656,0.00032876,120]
[399809551,1766690548252,297.44857306,0.00032876,120]
[399809552,1766690550513,200.0,0.00032355,120]
[399809553,1766690550892,408.771844,0.00032876,120]
[399809554,1766690552736,406.88952522,0.00032876,120]
[399809555,1766690556271,429.52459648,0.00032876,120]
[399809557,1766690560540,207.46511775,0.00032876,120]
[399809558,1766690560612,402.11700848,0.00032876,120]
[399809559,1766690562348,385.86254603,0.00032876,120]
[399809561,1766690564983,268.20739699,0.00032876,120]
[399809563,1766690565071,155.15639122,0.00032876,120]
[399809566,1766690567203,434.37933898,0.00032876,120]
[399809567,1766690569524,190.04999137,0.00032876,120]
[399809568,1766690570012,151.0,0.00032876,120]
[399809569,1766690570669,262.42388089,0.00032876,120]
[399809570,1766690571027,289.3774061,0.00032876,120]
[399809571,1766690571843,487.09792932,0.00032876,120]
[399809572,1766690572153,497.71228405,0.00032876,120]
[399809573,1766690572413,276.52160568,0.00032876,120]
[399809574,1766690576006,252.63491377,0.00032876,120]
[399809575,1766690577130,453.78665156,0.00032876,120]
[399809576,1766690578342,174.44298868,0.00032876,120]
[399809577,1766690580964,358.82343501,0.00032876,120]
[399809578,1766690582140,297.66754212,0.00032876,120]
[399809579,1766690582374,315.69299271,0.00032876,120]
[399809580,1766690582593,377.20847281,0.00032876,120]
[399809581,1766690585774,295.93144403,0.00032876,120]
[399809582,1766690585839,317.37355752,0.00032876,120]
[399809586,1766690586096,233.46571689,0.00032876,120]
[399809587,1766690586287,414.55801676,0.00032876,120]
[399809588,1766690586464,495.3419233,0.00032876,120]
[399809589,1766690588163,454.86501333,0.00032876,120]
[399809590,1766690589422,464.76054882,0.00032876,120]
[399809591,1766690590025,280.67820501,0.00032876,120]
[399809592,1766690591736,220.6326312,0.00032876,120]
[399809593,1766690593401,411.19375717,0.00032876,120]
[399809594,1766690594130,488.13211686,0.00032876,120]
[399809595,1766690595152,171.00736758,0.00032876,120]
[399809596,1766690596362,449.53351378,0.00032876,120]
[399809597,1766690598202,207.57172068,0.00032876,120]
[399809598,1766690600131,276.97485964,0.00032876,120]
[399809599,1766690602027,156.54441117,0.00032876,120]
[399809600,1766690603506,476.41076241,0.00032876,120]
[399809601,1766690606273,278.19691995,0.00032876,120]
[399809602,1766690607658,430.6291202,0.00032876,120]
[399809603,1766690610205,230.0,0.00032876,120]
[399809604,1766690611796,252.46969118,0.00032876,120]
[399809605,1766690612031,243.61513333,0.00032876,120]
[399809606,1766690612152,422.67762562,0.00032876,120]
[399809607,1766690614049,246.60100906,0.00032876,120]
[399809608,1766690616907,471.58151835,0.00032876,120]
[399809610,1766690618646,495.55278555,0.00032876,120]
[399809613,1766690620465,406.62639292,0.00032876,120]
[399809614,1766690620555,393.38251657,0.00032876,120]
[399809616,1766690622298,379.44146253,0.00032876,120]
[399809617,1766690622368,236.09520833,0.00032876,120]
[399809619,1766690626077,287.47838125,0.00032876,120]
[399809620,1766690627199,278.22235354,0.00032876,120]
[399809621,1766690629828,200.95982592,0.00032876,120]
[399809622,1766690631562,426.40660245,0.00032876,120]
[399809623,1766690634068,166.89926934,0.00032876,120]
[399809624,1766690635806,200.70925511,0.00032876,120]
[399809625,1766690636222,157.84232009,0.00032876,120]
[399809626,1766690637470,480.48414089,0.00032876,120]
[399809627,1766690639377,444.6106602,0.00032876,120]
[399809628,1766690641589,448.7458281,0.00032876,120]
[399809629,1766690643205,215.02311984,0.00032876,120]
[399809630,1766690643395,434.18060886,0.00032876,120]
[399809631,1766690644755,478.43551873,0.00032876,120]
[399809632,1766690646732,184.15122077,0.00032876,120]
[399809633,1766690647127,160.21356574,0.00032876,120]
[399809634,1766690649228,223.72,0.00032876,120]
[399809635,1766690650503,195.39905809,0.00032876,120]
[399809636,1766690651564,169.4397022,0.00032876,120]
[399809637,1766690652160,438.72132408,0.00032876,120]
[399809638,1766690652230,487.60514346,0.00032876,120]
[399809639,1766690656279,401.99118623,0.00032876,120]
[399809640,1766690657403,189.90304579,0.00032876,120]
[399809641,1766690660479,363.30451544,0.00032876,120]
[399809642,1766690660813,298.56742612,0.00032876,120]
[399809643,1766690661139,461.74039802,0.00032876,120]
[399809644,1766690661309,480.97280347,0.00032876,120]
[399809645,1766690661435,471.69846469,0.00032876,120]
[399809646,1766690663496,313.29248233,0.00032876,120]
[399809647,1766690663571,342.59511313,0.00032876,120]
[399809648,1766690664940,344.46970503,0.00032876,120]
[399809649,1766690665455,347.36794395,0.00032876,120]
[399809650,1766690667487,403.56603619,0.00032876,120]
[399809651,1766690672511,172.29712744,0.00032876,120]
[399809652,1766690672898,237.42067935,0.00032876,120]
[399809653,1766690674548,337.03368026,0.00032876,120]
[399809654,1766690675433,390.20140414,0.00032876,120]
[399809655,1766690676349,426.65936324,0.00032876,120]
[399809656,1766690678871,156.2121779,0.00032876,120]
[399809657,1766690678940,481.4037926,0.00032876,120]
[399809658,1766690679006,309.31971755,0.00032876,120]
[399809659,1766690679112,434.89306034,0.00032876,120]
[399809660,1766690680325,220.34166076,0.00032876,120]
[399809661,1766690680975,337.63199857,0.00032876,120]
[399809662,1766690683683,493.10089983,0.00032876,120]
[399809663,1766690685298,161.54900072,0.00032876,120]
[399809664,1766690685496,421.39577053,0.00032876,120]
[399809665,1766690685642,260.01429469,0.00032876,120]
[399809666,1766690687306,256.34260749,0.00032876,120]
[399809667,1766690687815,358.6232893,0.00032876,120]
[399809668,1766690689021,200.63914716,0.00032876,120]
[399809669,1766690690518,240.37243562,0.00032876,120]
[399809670,1766690692161,333.89021026,0.00032876,120]
[399809671,1766690693937,164.48788145,0.00032876,120]
[399809672,1766690694294,334.70232335,0.00032876,120]
[399809673,1766690696853,437.23995372,0.00032876,120]
[399809674,1766690697475,442.09624598,0.00032876,120]
[399809675,1766690698791,195.74330717,0.00032876,120]
[399809676,1766690699943,397.61236516,0.00032876,120]
[399809677,1766690703767,265.88380477,0.00032876,120]
[399809678,1766690704947,354.98000385,0.00032876,120]
[399809679,1766690705031,402.22482616,0.00032876,120]
[399809680,1766690705126,319.39738949,0.00032876,120]
[399809681,1766690705959,473.90469452,0.00032876,120]
[399809682,1766690707855,309.98554546,0.00032876,120]
[399809683,1766690708380,196.63293321,0.00032876,120]
[399809684,1766690710094,240.23650203,0.00032876,120]
[399809685,1766690711177,304.76707792,0.00032876,120]
[399809686,1766690712998,493.41490316,0.00032876,120]
[399809687,1766690714966,237.48239934,0.00032876,120]
[399809688,1766690716679,482.38804451,0.00032876,120]
[399809689,1766690718315,348.09740521,0.00032876,120]
[399809690,1766690719672,395.57510634,0.00032876,120]
[399809691,1766690720231,178.09301949,0.00032876,120]
[399809692,1766690721463,244.4690927,0.00032876,120]
[399809693,1766690725160,232.9266142,0.00032876,120]
[399809694,1766690727971,191.85825405,0.00032876,120]
[399809695,1766690732071,279.45308603,0.00032876,120]
[399809696,1766690732565,294.39168979,0.00032876,120]
[399809698,1766690736104,178.06422062,0.00032876,120]
[399809699,1766690736809,464.28367076,0.00032876,120]
[399809700,1766690736985,496.84809073,0.00032876,120]
[399809701,1766690742009,482.22388793,0.00032876,120]
[399809702,1766690743269,309.98076879,0.00032876,120]
[399809703,1766690745429,215.19039401,0.00032876,120]
[399809704,1766690746149,367.57,0.00032876,120]
[399809705,1766690746519,200.0,0.00032876,120]
[399809706,1766690746752,200.0,0.00032876,120]
[399809707,1766690746983,200.0,0.00032876,120]
[399809708,1766690747102,497.25506055,0.00032876,120]
[399809709,1766690747231,200.0,0.00032876,120]
[399809710,1766690747492,200.0,0.00032876,120]
[399809711,1766690747751,200.0,0.00032876,120]
[399809712,1766690747987,200.0,0.00032876,120]
[399809713,1766690748220,200.0,0.00032876,120]
[399809714,1766690748455,200.0,0.00032876,120]
[399809715,1766690748688,200.0,0.00032876,120]
[399809716,1766690748767,183.20048903,0.00032876,120]
[399809717,1766690748855,355.21701858,0.00032876,120]
[399809718,1766690748930,200.0,0.00032876,120]
[399809719,1766690749165,200.0,0.00032876,120]
[399809720,1766690749613,200.0,0.00032876,120]
[399809721,1766690749691,200.0,0.00032876,120]
[399809722,1766690749900,200.0,0.00032876,120]
[399809723,1766690750157,200.0,0.00032876,120]
[399809724,1766690750409,200.0,0.00032876,120]
[399809725,1766690750552,440.80783159,0.00032876,120]
[399809726,1766690750766,306.25067744,0.00032876,120]
[399809727,1766690751537,494.26524121,0.00032876,120]
[399809728,1766690752304,484.97035451,0.00032876,120]
[399809729,1766690752532,455.12140315,0.00032876,120]
[399809730,1766690754250,266.91288845,0.00032876,120]
[399809732,1766690757072,249.2087862,0.00032876,120]
[399809733,1766690757367,484.92913172,0.00032876,120]
[399809735,1766690760238,472.55926671,0.00032876,120]
[399809736,1766690763485,260.86517833,0.00032876,120]
[399809737,1766690767312,447.21594173,0.00032876,120]
[399809738,1766690767892,442.57976179,0.00032876,120]
[399809739,1766690768203,155.77214915,0.00032876,120]
[399809741,1766690773162,221.23616279,0.00032876,120]
[399809742,1766690773374,154.55267876,0.00032876,120]
[399809743,1766690774266,453.66280924,0.00032876,120]
[399809744,1766690777225,469.20461556,0.00032876,120]
[399809746,1766690783348,193.33505981,0.00032876,120]
[399809747,1766690784878,261.66819625,0.00032876,120]
[399809748,1766690785014,437.59582586,0.00032876,120]
[399809749,1766690787186,484.71034821,0.00032876,120]
[399809750,1766690790773,315.35390156,0.00032876,120]
[399809751,1766690792751,191.82861671,0.00032876,120]
[399809752,1766690793956,203.74726987,0.00032876,120]
[399809753,1766690798383,460.4,0.00032876,120]
[399809754,1766690801533,267.6793066,0.00032876,120]
[399809755,1766690803572,451.20771684,0.00032876,120]
[399809756,1766690803646,433.54925329,0.00032876,120]
[399809757,1766690804547,175.81312549,0.00032876,120]
[399809758,1766690808561,215.21196969,0.00032876,120]
[399809760,1766690813467,163.91336683,0.00032876,120]
[399809763,1766690819123,480.61073871,0.00032876,120]
[399809765,1766690820135,185.85215186,0.00032876,120]
[399809766,1766690825652,223.66184246,0.00032876,120]
[399809767,1766690828712,276.19981532,0.00032876,120]
[399809768,1766690828931,436.54,0.00032876,120]
[399809769,1766690829239,237.42790482,0.00032876,120]
[399809770,1766690830575,321.92145319,0.00032876,120]
[399809772,1766690831556,224.961718,0.00032876,120]
[399809773,1766690833965,414.232604,0.00032876,120]
[399809775,1766690835320,468.63824637,0.00032876,120]
[399809776,1766690838681,419.67015114,0.00032876,120]
[399809777,1766690847446,430.41869872,0.00032876,120]
[399809778,1766690850737,200.0,0.00031466,120]
[399809779,1766690851783,361.44019795,0.00032876,120]
[399809780,1766690857212,406.52,0.00032876,120]
[399809781,1766690860749,324.07253058,0.00032876,120]
[399809782,1766690860876,275.91360997,0.00032876,120]
[399809784,1766690862702,168.19259356,0.00032876,120]
[399809785,1766690866087,187.86246538,0.00032876,120]
[399809787,1766690867885,357.42313285,0.00032876,120]
[399809788,1766690869591,385.00000001,0.00032876,120]
[399809789,1766690872433,192.00325475,0.00032876,120]
[399809790,1766690874521,194.39886559,0.00032876,120]
[399809791,1766690874612,351.5378357,0.00032876,120]
[399809792,1766690877875,419.62868534,0.00032876,120]
[399809793,1766690882396,247.82079355,0.00032876,120]
[399809794,1766690884212,271.88010088,0.00032876,120]
[399809795,1766690885043,179.74046969,0.00032876,120]
[399809796,1766690885611,225.6651455,0.00032876,120]
[399809797,1766690886082,484.15637335,0.00032876,120]
[399809798,1766690890474,468.28426706,0.00032876,120]
[399809799,1766690891536,204.58910222,0.00032876,120]
[399809800,1766690893329,150.88119601,0.00032876,120]
[399809802,1766690897474,474.67016976,0.00032876,120]
[399809803,1766690897978,455.10896654,0.00032876,120]
[399809804,1766690901668,294.10351317,0.00032876,120]
[399809806,1766690905651,475.86613694,0.00032876,120]
[399809807,1766690906057,305.62064327,0.00032876,120]
[399809808,1766690907080,480.0,0.00032876,120]
[399809809,1766690909758,458.1707738,0.00032876,120]
[399809811,1766690910244,451.51969967,0.00032876,120]
[399809813,1766690913062,277.85204589,0.00032,120]
[399809814,1766690916295,209.90993686,0.0003,120]
[399809816,1766690918084,385.36264158,0.0003,120]
[399809817,1766690918424,191.51275126,0.000295,120]
[399809819,1766690919706,430.15865178,0.00032876,120]
[399809820,1766690922812,200.0,0.000245,120]
[399809821,1766690923975,256.82675816,0.00025847,120]
[399809822,1766690925249,345.46055574,0.0003,120]
[399809823,1766690935023,268.2161186,0.00032876,120]
[399809824,1766690938332,279.69824286,0.00032876,120]
[399809825,1766690939683,211.85748021,0.00031945,120]
[399809826,1766690944036,347.0213521,0.00032876,120]
[399809827,1766690954173,487.41619566,0.00032876,120]
[399809828,1766690955026,210.94902214,0.00032876,120]
[399809829,1766690956620,482.37554065,0.00032876,120]
[399809830,1766690958440,481.52926682,0.00032876,120]
[399809831,1766690960214,270.34325071,0.00032876,120]
[399809832,1766690963940,404.50542682,0.00032876,120]
[399809833,1766690965080,175.58760277,0.00032876,120]
[399809834,1766690969134,239.79020623,0.00032876,120]
[399809835,1766690970410,443.6237028,0.00032876,120]
[399809836,1766690970841,408.68736997,0.00032876,120]
[399809837,1766690972052,465.63274599,0.00032876,120]
[399809838,1766690974839,480.0,0.00032876,120]
[399809839,1766690975193,286.91701407,0.00032876,120]
[399809840,1766690976996,163.77663537,0.00032876,120]
[399809841,1766690983015,225.00695574,0.00032876,120]
[399809842,1766690985975,363.49397526,0.00032876,120]
[399809843,1766690987651,381.00634201,0.00032876,120]
[399809844,1766690993382,219.10478873,0.00032876,120]
[399809845,1766690995720,252.42898162,0.00032876,120]
[399809846,1766690996798,478.32046825,0.00032876,120]
[399809847,1766691001457,337.21498554,0.00032876,120]
[399809848,1766691002161,277.73059495,0.00032876,120]
[399809849,1766691003630,382.2175028,0.00032876,120]
[399809850,1766691006811,381.07949279,0.00032876,120]
[399809851,1766691007004,477.31301989,0.00032876,120]
[399809853,1766691012452,338.50646315,0.00032876,120]
[399809854,1766691018219,158.07009906,0.00032876,120]
[399809855,1766691021476,462.18772263,0.00032876,120]
[399809856,1766691023133,223.95572672,0.00032876,120]
[399809857,1766691023544,388.75479173,0.00032876,120]
[399809858,1766691024883,225.99039405,0.00032876,120]
[399809859,1766691026658,481.17512357,0.00032876,120]
[399809860,1766691029088,378.02538457,0.00032876,120]
[399809882,1766691032386,-231.54572744,4.994e-05,2]
[399809884,1766691032396,-154.33,5e-05,2]
[399809885,1766691032406,-154.33,9e-05,2]
[399809887,1766691032419,-500.0,9.28e-05,2]
[399809891,1766691032651,-471.57238652,9.28e-05,2]